bitfinex-derivatives/quotes_SOLF0:USTF0_20241017
["timestamp","ask_amount","ask_price","bid_price","bid_amount"]
[1729186121393,3.3375,149.84,149.79,3.3384]
[1729186121587,3.3375,149.84,149.78,6.48]
[1729186121887,3.3376,149.83,149.78,6.48]
[1729186122087,32.12,149.87,149.78,6.48]
[1729186122390,32.12,149.87,149.78,9.8185]
[1729186122582,32.12,149.87,149.78,3.3385]
[1729186122891,3.3378,149.82,149.78,3.3385]
[1729186125093,3.3378,149.82,149.77,9.73878656]
[1729186125288,3.3378,149.82,149.77,13.07758656]
[1729186126495,3.3378,149.82,149.74,28.5011]
[1729186126496,32.12,149.82,149.74,2.8611]
[1729186126695,6.48,149.82,149.74,2.8611]
[1729186126988,3.338,149.81,149.74,29.8852]
[1729186127383,6.48,149.85,149.74,29.8852]
[1729186127593,3.3378,149.82,149.77,3.3388]
[1729186128290,3.3378,149.82,149.76,6.48]
[1729186128892,3.3378,149.82,149.77,3.3387]
[1729186129192,6.48,149.85,149.74,4.2452]
[1729186129394,25.64,149.8,149.73,453.80688]
[1729186129697,6.48,149.79,149.73,453.80688]
[1729186129884,3.3394,149.75,149.73,453.80688]
[1729186130494,6.48,149.79,149.73,457.14658]
[1729186130495,3.3389,149.77,149.73,457.14658]
[1729186130696,6.48,149.79,149.73,453.80688]
[1729186131389,3.3391,149.77,149.73,453.80688]
[1729186131590,6.48,149.79,149.73,453.80688]
[1729186132000,3.3392,149.76,149.73,457.14668]
[1729186132192,6.48,149.79,149.73,3.3398]
[1729186133399,3.3391,149.76,149.73,3.3398]
[1729186133598,3.3391,149.76,149.73,6.71654851]
[1729186134600,3.3391,149.76,149.73,3.37674851]
[1729186134897,3.3391,149.76,149.72,3.3399]
[1729186135097,3.3391,149.76,149.73,3.35915784]
[1729186135299,3.3391,149.76,149.72,3.3399]
[1729186135495,6.48,149.79,149.72,6.60321548]
[1729186135691,6.48,149.79,149.72,3.26331548]
[1729186135898,8.134,149.86,149.74,3.3394]
[1729186135899,32.12,149.82,149.74,3.3394]
[1729186136194,8.134,149.86,149.74,3.28969717]
[1729186136493,6.48,149.85,149.77,3.3389]
[1729186136701,3.3377,149.83,149.77,3.3389]
[1729186136899,6.48,149.85,149.77,3.3389]
[1729186137302,3.3382,149.81,149.78,3.3386]
[1729186137488,6.48,149.84,149.73,25.64]
[1729186137891,3.338,149.81,149.78,3.3386]
[1729186139603,3.3375,149.84,149.8,3.3381]
[1729186139801,6.48,149.85,149.76,6.48]
[1729186139997,6.48,149.85,149.77,1.3627]
[1729186140504,3.3377,149.83,149.77,1.3627]
[1729186141207,3.3377,149.83,149.79,3.3383]
[1729186141712,6.48,149.85,149.77,1.3627]
[1729186142004,3.3378,149.82,149.78,3.3386]
[1729186142205,3.3378,149.82,149.77,1.3627]
[1729186142594,3.3378,149.82,149.78,3.3386]
[1729186142797,3.3375,149.84,149.77,1.3627]
[1729186143003,6.48,149.85,149.77,1.3627]
[1729186143201,6.48,149.85,149.8,3.3382]
[1729186143405,3.3375,149.84,149.8,6.63959445]
[1729186144204,3.3372,149.85,149.8,3.30139445]
[1729186144404,1.4681,149.92,149.8,32.12]
[1729186144607,7.9481,149.92,149.8,35.42873905]
[1729186144810,3.3364,149.89,149.82,3.3376]
[1729186145108,3.3364,149.89,149.8,35.42873905]
[1729186145109,7.9481,149.92,149.8,35.42873905]
[1729186146410,3.3369,149.86,149.8,35.42873905]
[1729186146706,7.9481,149.92,149.8,35.42873905]
[1729186146908,3.3367,149.87,149.83,3.3374]
[1729186147214,1.4681,149.92,149.8,35.42873905]
[1729186147408,25.64,149.93,149.8,35.42873905]
[1729186147709,3.3361,149.9,149.83,25.64]
[1729186147904,3.3361,149.9,149.84,10.8836]
[1729186148103,3.3361,149.9,149.86,3.3368]
[1729186148509,6.48,149.9,149.8,3.30873905]
[1729186148706,25.64,149.86,149.78,4.1968]
[1729186149005,25.64,149.83,149.74,6.48]
[1729186149198,25.64,149.83,149.74,10.4368]
[1729186149711,3.3388,149.78,149.74,10.4368]
[1729186149905,3.3388,149.78,149.74,13.7762]
[1729186150608,3.339,149.77,149.74,2.8177]
[1729186150811,25.64,149.81,149.74,1.3697]
[1729186151910,3.3389,149.78,149.74,1.3697]
[1729186152206,25.64,149.81,149.74,1.3697]
[1729186152413,3.3385,149.79,149.75,3.3393]
[1729186153107,6.24,149.85,149.76,6.24]
[1729186153405,6.24,149.88,149.78,25.64]
[1729186153600,3.3367,149.87,149.78,25.64]
[1729186153998,31.88,149.91,149.8,25.64]
[1729186154210,25.64,149.93,149.82,25.64]
[1729186154511,6.24,149.93,149.83,1.4831]
[1729186154708,3.3359,149.91,149.86,3.3369]
[1729186154912,3.3359,149.91,149.86,9.5769]
[1729186155102,3.3359,149.91,149.86,6.24]
[1729186155303,3.3359,149.91,149.87,3.3367]
[1729186155499,3.3356,149.92,149.87,3.3367]
[1729186155717,31.88,149.96,149.87,3.3367]
[1729186156707,3.3357,149.92,149.87,3.3367]
[1729186157813,3.3362,149.9,149.86,9.5769]
[1729186158516,3.3359,149.91,149.86,9.5769]
[1729186158715,3.3359,149.91,149.87,3.3366]
[1729186159113,3.3359,149.91,149.86,6.24]
[1729186159310,3.3359,149.91,149.86,9.5769]
[1729186159518,3.3359,149.91,149.86,6.24]
[1729186160311,97.74,149.98,149.86,6.24]
[1729186160511,3.3356,149.92,149.86,6.24]
[1729186161414,97.74,149.98,149.87,25.64]
[1729186161415,3.3353,149.94,149.87,25.64]
[1729186161712,6.24,149.98,149.87,25.64]
[1729186162419,3.3349,149.95,149.9,3.3359]
[1729186162623,6.24,149.98,149.9,6.24]
[1729186163215,6.24,149.98,149.9,9.60869118]
[1729186163615,1.3591,149.99,149.9,9.60869118]
[1729186163820,3.3354,149.93,149.9,6.24]
[1729186164013,7.5991,149.99,149.84,1.3661]
[1729186164014,31.88,149.95,149.84,1.3661]
[1729186164208,31.88,149.95,149.84,8.9575]
[1729186164923,3.3356,149.92,149.89,3.3362]
[1729186165118,6.24,149.95,149.84,34.5975]
[1729186165319,6.24,149.98,149.86,25.64]
[1729186166119,3.3351,149.94,149.91,3.3358]
[1729186166324,3.3351,149.94,149.91,6.7029323]
[1729186166632,3.3351,149.94,149.91,3.3358]
[1729186167015,3.3354,149.93,149.9,3.25906386]
[1729186167510,3.3352,149.94,149.9,6.59496386]
[1729186167928,6.24,149.98,149.9,6.59496386]
[1729186168417,3.336,149.91,149.89,6.24]
[1729186168612,38.5487,149.98,149.84,28.3575]
[1729186168816,25.64,149.95,149.85,6.24]
[1729186169018,3.3361,149.9,149.86,3.3368]
[1729186171528,25.64,149.95,149.85,6.24]
[1729186171721,3.3359,149.91,149.87,3.3366]
[1729186173014,3.336,149.9,149.86,3.3368]
[1729186173214,25.64,149.95,149.85,6.24]
[1729186173728,3.3359,149.91,149.87,3.3366]
[1729186174927,3.3359,149.91,149.87,3.3365]
[1729186177522,3.336,149.9,149.87,3.3367]
[1729186177725,3.336,149.9,149.85,6.24]
[1729186178730,25.64,149.95,149.85,6.24]
[1729186178918,6.04,149.94,149.85,6.24]
[1729186179117,6.04,149.94,149.85,9.577]
[1729186179326,25.64,149.9,149.84,2.7175]
[1729186179529,31.68,149.9,149.82,3.37229368]
[1729186179724,3.3371,149.86,149.81,3.29740697]
[1729186179925,25.64,149.88,149.79,10.7981]
[1729186180323,25.64,149.88,149.79,7.4598]
[1729186181230,25.64,149.85,149.79,1.4198]
[1729186181622,3.3377,149.83,149.79,4.7582]
[1729186181822,25.64,149.85,149.78,6.04]
[1729186182427,3.3379,149.82,149.78,3.3386]
[1729186182736,25.64,149.85,149.76,6.04]
[1729186183025,25.64,149.85,149.79,3.3383]
[1729186183026,3.3377,149.83,149.79,3.3383]
[1729186185526,3.3382,149.81,149.77,3.3388]
[1729186186832,3.3383,149.8,149.76,9.379]
[1729186187034,25.64,149.83,149.76,3.339]
[1729186187235,25.64,149.83,149.74,10.2807]
[1729186187531,3.3382,149.8,149.74,10.2807]
[1729186188034,3.3382,149.8,149.76,3.339]
[1729186189931,6.06,149.86,149.74,10.2807]
[1729186190432,25.64,149.87,149.75,25.64]
[1729186190628,25.64,149.87,149.81,3.3379]
[1729186190834,25.64,149.87,149.81,3.27890084]
[1729186191053,97.7,149.95,149.86,3.3368]
[1729186191054,3.3361,149.9,149.86,3.3368]
[1729186191329,6.06,149.93,149.83,10.3523]
[1729186191536,25.64,149.94,149.83,10.3523]
[1729186191837,3.3356,149.92,149.88,3.3363]
[1729186193330,9.395,149.95,149.9,3.3359]
[1729186193535,6.06,149.95,149.9,6.66667476]
[1729186193926,25.64,149.97,149.87,6.04]
[1729186194131,31.68,149.97,149.9,3.336]
[1729186194732,31.68,149.97,149.87,6.04]
[1729186194937,3.3355,149.93,149.88,3.3363]
[1729186196129,6.04,149.96,149.87,6.04]
[1729186196336,3.3352,149.94,149.89,3.3361]
[1729186196638,6.04,149.96,149.89,3.25437013]
[1729186196938,3.3353,149.94,149.89,3.3362]
[1729186197128,3.3353,149.94,149.89,6.64028319]
[1729186197729,3.3351,149.95,149.9,3.3359]
[1729186198430,3.3352,149.94,149.9,6.71593682]
[1729186198633,6.04,149.96,149.89,3.3362]
[1729186198831,6.04,149.96,149.89,6.64651438]
[1729186199035,3.335,149.95,149.91,3.3358]
[1729186200146,25.64,149.97,149.87,6.04]
[1729186200343,25.64,149.97,149.9,3.40772563]
[1729186201139,25.64,149.94,149.83,4.2923]
[1729186201436,25.64,149.94,149.76,6.6782]
[1729186201437,25.64,149.87,149.76,6.04]
[1729186201644,25.64,149.87,149.77,4.237]
[1729186201937,25.64,149.85,149.77,4.237]
[1729186202145,25.64,149.85,149.77,10.277]
[1729186203036,3.3379,149.82,149.78,3.3386]
[1729186206141,3.3371,149.86,149.81,3.338]
[1729186206341,6.04,149.88,149.81,3.338]
[1729186206342,1.4368,149.93,149.81,9.37344412]
[1729186206546,7.4768,149.93,149.81,9.37344412]
[1729186206736,25.64,149.92,149.81,3.33344412]
[1729186206939,25.64,149.87,149.79,6.04]
[1729186207141,25.64,149.85,149.79,6.04]
[1729186207339,25.64,149.85,149.77,4.237]
[1729186208347,3.3377,149.83,149.78,3.3385]
[1729186208547,3.3377,149.83,149.77,4.237]
[1729186208843,3.3377,149.83,149.79,3.3385]
[1729186209752,3.3382,149.81,149.77,4.237]
[1729186210654,25.64,149.83,149.77,4.237]
[1729186210856,3.3383,149.8,149.77,1.4758]
[1729186211247,25.64,149.83,149.77,1.4758]
[1729186211447,25.64,149.83,149.74,5.94]
[1729186211643,5.94,149.82,149.74,5.94]
[1729186212140,3.3387,149.78,149.74,9.2795]
[1729186212349,25.64,149.8,149.73,4.7732622]
[1729186212545,25.64,149.8,149.73,1.4357]
[1729186212746,25.64,149.76,149.7,3.3403]
[1729186212952,25.64,149.76,149.69,5.94]
[1729186214053,3.3394,149.75,149.71,3.3401]
[1729186214348,25.64,149.76,149.66,4.2754]
[1729186214545,25.64,149.71,149.65,3.36316164]
[1729186214742,25.64,149.68,149.61,5.94]
[1729186214946,25.64,149.68,149.6,5.94]
[1729186215160,28.981,149.68,149.63,3.3419]
[1729186215452,5.94,149.71,149.6,5.94]
[1729186215453,25.64,149.7,149.6,5.94]
[1729186215648,25.64,149.68,149.6,5.94]
[1729186216049,25.64,149.68,149.59,7.67559179]
[1729186216252,25.64,149.68,149.6,5.94]
[1729186217152,28.981,149.68,149.63,3.3419]
[1729186217653,3.3416,149.65,149.61,3.3423]
[1729186217850,25.64,149.68,149.61,3.3423]
[1729186218049,5.94,149.71,149.61,3.3423]
[1729186218249,25.64,149.7,149.59,13.61559179]
[1729186218860,3.3409,149.69,149.64,3.3418]
[1729186220757,1.477,149.75,149.59,13.61559179]
[1729186220758,3.3401,149.72,149.63,5.94]
[1729186220963,5.94,149.74,149.64,25.64]
[1729186221155,5.94,149.76,149.72,3.3399]
[1729186221950,76.9441,149.8,149.72,3.3399]
[1729186222150,79.5457,149.8,149.69,25.64]
[1729186222359,7.4257,149.8,149.69,28.98023777]
[1729186222549,7.4257,149.8,149.75,3.3391]
[1729186222550,10.7639,149.8,149.75,3.3391]
[1729186222756,5.94,149.8,149.69,28.98023777]
[1729186223059,25.64,149.79,149.68,5.94]
[1729186223262,27.1257,149.79,149.68,5.94]
[1729186223557,27.1257,149.79,149.69,3.31718321]
[1729186223965,3.3393,149.76,149.7,3.3402]
[1729186224171,27.1257,149.79,149.68,5.94]
[1729186224354,5.94,149.79,149.68,5.94]
[1729186224556,25.64,149.84,149.71,25.64]
[1729186224760,5.94,149.84,149.73,25.64]
[1729186224965,5.94,149.84,149.74,1.3774]
[1729186225274,31.58,149.86,149.74,4.71462922]
[1729186225459,231.6683,149.99,149.79,25.64]
[1729186225769,3.3362,149.9,149.79,31.58]
[1729186225973,25.64,149.89,149.79,3.3041642]
[1729186226166,25.64,149.89,149.79,5.94]
[1729186226359,3.3371,149.86,149.79,9.33968537]
[1729186226668,3.3371,149.86,149.81,3.338]
[1729186226970,3.3371,149.85,149.8,3.3382]
[1729186227171,3.3371,149.85,149.79,5.94]
[1729186227172,25.64,149.89,149.79,5.94]
[1729186227369,25.64,149.89,149.79,9.32786034]
[1729186227565,25.64,149.87,149.79,5.94]
[1729186227864,31.58,149.87,149.79,5.94]
[1729186228371,25.64,149.84,149.76,5.94]
[1729186228967,3.3379,149.82,149.76,9.279]
[1729186229461,3.3379,149.82,149.76,5.94]
[1729186229866,3.3379,149.82,149.77,3.3389]
[1729186230068,28.9776,149.84,149.76,5.94]
[1729186230267,25.64,149.87,149.81,3.3379]
[1729186231059,3.3371,149.86,149.81,3.3379]
[1729186231671,25.64,149.87,149.76,31.58]
[1729186231874,3.3369,149.86,149.76,31.58]
[1729186232166,25.64,149.87,149.77,3.3388]
[1729186232364,25.64,149.87,149.76,5.94]
[1729186232767,3.3372,149.85,149.79,3.3383]
[1729186232963,25.64,149.82,149.75,3.38185113]
[1729186233167,25.64,149.8,149.68,4.2657]
[1729186233366,3.3396,149.74,149.68,4.2657]
[1729186233570,25.64,149.77,149.68,7.6477629]
[1729186234369,25.64,149.77,149.69,5.94]
[1729186234573,31.58,149.8,149.69,5.94]
[1729186234773,25.64,149.8,149.69,5.94]
[1729186234970,31.58,149.82,149.69,5.94]
[1729186235377,5.94,149.82,149.71,25.64]
[1729186235577,1.448,149.84,149.73,25.64]
[1729186235880,3.337,149.86,149.75,41.66]
[1729186236075,41.66,149.86,149.76,4.3404]
[1729186236269,41.66,149.86,149.77,3.25838419]
[1729186236480,3.3376,149.83,149.77,3.25838419]
[1729186236676,41.66,149.86,149.76,4.3404]
[1729186236978,41.66,149.88,149.77,5.94]
[1729186237178,41.66,149.88,149.77,9.22081089]
[1729186237771,5.94,149.9,149.77,50.88081089]
[1729186237976,47.94,149.93,149.8,41.66]
[1729186238175,3.3373,149.85,149.81,6.28]
[1729186238575,3.3373,149.85,149.79,6.28]
[1729186239283,3.3373,149.85,149.8,3.30918583]
[1729186239881,3.3367,149.87,149.79,6.28]
[1729186240184,6.28,149.89,149.79,9.67164007]
[1729186240986,3.3367,149.87,149.79,9.67164007]
[1729186242882,3.3364,149.89,149.79,9.67164007]
[1729186243185,3.3364,149.89,149.8,41.66]
[1729186243382,6.28,149.92,149.8,41.66]
[1729186243597,3.3365,149.88,149.8,41.66]
[1729186244083,3.3358,149.91,149.8,41.66]
[1729186244385,41.66,149.95,149.83,41.66]
[1729186244582,41.66,149.95,149.84,10.6169]
[1729186244788,3.3357,149.92,149.84,10.6169]
[1729186245279,3.3357,149.92,149.86,3.3369]
[1729186246087,3.3357,149.92,149.87,6.28]
[1729186246891,41.66,149.95,149.88,3.35123715]
[1729186247592,3.336,149.91,149.88,3.35123715]
[1729186248389,41.66,149.95,149.87,6.28]
[1729186248590,41.66,149.93,149.84,4.3369]
[1729186248796,41.66,149.93,149.84,10.6169]
[1729186248797,47.94,149.93,149.84,10.6169]
[1729186249196,3.3368,149.87,149.84,10.6169]
[1729186249994,1.3588,149.94,149.65,41.66]
[1729186249995,41.66,149.88,149.7,72.08]
[1729186250188,41.66,149.81,149.75,1.4617]
[1729186250494,41.66,149.76,149.65,6.28]
[1729186250697,41.66,149.76,149.66,4.2929]
[1729186250893,41.66,149.73,149.66,4.2929]
[1729186251102,3.3411,149.68,149.66,4.2929]
[1729186251294,41.66,149.73,149.66,4.2929]
[1729186251489,41.66,149.7,149.6,72.08]
[1729186251697,3.3415,149.66,149.61,7.6612]
[1729186251890,41.66,149.68,149.61,7.6612]
[1729186252700,3.3414,149.66,149.61,7.6612]
[1729186252899,41.66,149.68,149.61,7.6612]
[1729186253088,3.3417,149.65,149.61,7.6612]
[1729186253289,41.66,149.7,149.61,7.6612]
[1729186253602,41.66,149.7,149.61,9.1523]
[1729186254598,3.3415,149.66,149.61,9.1523]
[1729186254800,41.66,149.7,149.61,9.1523]
[1729186255403,41.66,149.68,149.61,9.1523]
[1729186255802,3.3416,149.65,149.61,9.1523]
[1729186255999,3.3416,149.65,149.62,6.28]
[1729186256697,3.3416,149.65,149.63,6.28]
[1729186258494,41.66,149.66,149.61,2.8723]
[1729186258699,41.66,149.66,149.61,9.1523]
[1729186259404,3.3422,149.63,149.61,9.1523]
[1729186260411,3.3423,149.62,149.61,9.1523]
[1729186260903,3.3423,149.62,149.61,2.8723]
[1729186261101,3.3423,149.62,149.61,9.1523]
[1729186261704,41.66,149.68,149.61,9.1523]
[1729186261909,3.3421,149.63,149.61,9.1523]
[1729186262207,47.94,149.7,149.61,9.1523]
[1729186262395,3.342,149.63,149.61,9.1523]
[1729186262594,1.3805,149.72,149.61,9.1523]
[1729186262803,3.3425,149.61,149.6,9.69818383]
[1729186263106,3.3425,149.61,149.6,3.39818383]
[1729186263311,3.3425,149.61,149.58,1.4292]
[1729186263312,41.66,149.62,149.57,6.3]
[1729186263605,3.3431,149.59,149.57,6.3]
[1729186264004,6.3,149.69,149.56,72.12]
[1729186264201,41.66,149.66,149.57,6.3]
[1729186264502,41.66,149.68,149.57,6.3]
[1729186264709,3.3416,149.65,149.57,6.3]
[1729186264903,41.66,149.68,149.58,41.66]
[1729186265101,41.66,149.73,149.6,41.66]
[1729186265410,3.3408,149.69,149.63,41.66]
[1729186265609,6.3,149.75,149.64,3.3418]
[1729186265806,3.341,149.68,149.65,6.3]
[1729186266210,41.66,149.74,149.65,6.3]
[1729186266506,41.66,149.74,149.61,4.2115]
[1729186266507,41.66,149.7,149.61,2.8025]
[1729186266700,41.66,149.67,149.62,3.34402405]
[1729186267013,41.66,149.67,149.58,3.3429]
[1729186267014,41.66,149.67,149.58,6.3]
[1729186267304,1.3699,149.69,149.34,16.742]
[1729186267305,41.66,149.63,149.55,6.3]
[1729186267511,41.66,149.63,149.54,6.52]
[1729186267701,41.66,149.63,149.54,9.864]
[1729186268406,3.3434,149.57,149.54,9.864]
[1729186268603,41.66,149.63,149.54,6.52]
[1729186268808,41.66,149.65,149.55,3.3437]
[1729186270215,41.66,149.65,149.57,3.3433]
[1729186270515,41.66,149.65,149.54,6.52]
[1729186271618,41.66,149.67,149.55,41.66]
[1729186271824,1.3699,149.69,149.57,41.66]
[1729186272019,41.66,149.72,149.63,3.342]
[1729186272316,575.0,150.07,149.67,41.66]
[1729186272317,1.4662,149.78,149.67,41.66]
[1729186272519,3.3396,149.74,149.68,9.2945]
[1729186272819,1.4662,149.78,149.68,9.2945]
[1729186273008,41.66,149.79,149.68,9.2945]
[1729186273515,41.66,149.8,149.68,9.2945]
[1729186273713,3.3397,149.74,149.69,3.3407]
[1729186274412,3.3393,149.76,149.7,3.3404]
[1729186274608,3.3393,149.76,149.68,9.2945]
[1729186274609,41.66,149.8,149.68,9.2945]
[1729186275016,3.34,149.73,149.68,6.1152]
[1729186275222,41.66,149.78,149.69,6.52]
[1729186275617,3.3398,149.74,149.69,9.8606]
[1729186275818,3.3398,149.74,149.69,6.52]
[1729186276017,41.66,149.78,149.69,6.52]
[1729186276018,6.52,149.79,149.69,6.52]
[1729186276211,41.66,149.8,149.69,6.52]
[1729186277316,3.3397,149.74,149.69,9.8606]
[1729186277617,3.3397,149.74,149.69,6.52]
[1729186278618,3.3393,149.76,149.71,3.3402]
[1729186278825,3.3393,149.76,149.71,3.32242158]
[1729186279118,1.4557,149.82,149.69,48.18]
[1729186280321,3.3385,149.79,149.75,3.3393]
[1729186280519,41.66,149.85,149.76,3.32342188]
[1729186280916,3.338,149.81,149.77,3.32709638]
[1729186281222,1.3918,149.87,149.75,48.18]
[1729186281417,3.3371,149.85,149.8,3.338]
[1729186281615,1.3918,149.9,149.8,6.52]
[1729186281818,41.66,149.93,149.8,6.52]
[1729186282025,3.3365,149.88,149.83,3.3374]
[1729186282324,3.3365,149.88,149.84,6.52]
[1729186284329,3.3364,149.89,149.84,9.8572]
[1729186284713,41.66,149.93,149.84,6.52]
[1729186284927,3.336,149.91,149.86,3.3368]
[1729186285524,3.336,149.91,149.86,3.3369]
[1729186286321,3.3354,149.93,149.87,3.3365]
[1729186286522,41.66,149.98,149.88,6.52]
[1729186287027,7.9349,149.99,149.88,6.52]
[1729186287028,3.3347,149.96,149.89,41.66]
[1729186287319,41.66,150.03,149.91,41.66]
[1729186287521,3.3342,149.99,149.94,3.335]
[1729186287724,3.3342,149.99,149.94,6.60192659]
[1729186287915,41.66,150.03,149.94,3.26692659]
[1729186288218,41.66,150.03,149.94,3.335]
[1729186288421,41.66,150.03,149.95,9.82530213]
[1729186289020,41.66,150.03,149.93,3.3353]
[1729186289225,41.66,149.98,149.86,43.1011]
[1729186289420,41.66,149.98,149.87,6.52]
[1729186290433,3.3352,149.94,149.9,3.3358]
[1729186290615,48.18,150.0,149.91,6.52]
[1729186290820,3.3341,149.99,149.94,3.3351]
[1729186291021,41.66,150.03,149.95,6.52]
[1729186291328,41.66,150.05,149.95,6.52]
[1729186291625,3.3338,150.0,149.95,9.8547]
[1729186292421,3.3338,150.0,149.95,6.52]
[1729186292622,41.66,150.0,149.91,3.31021112]
[1729186292830,41.66,150.0,149.92,6.52]
[1729186293024,3.3349,149.95,149.92,6.52]
[1729186293630,3.335,149.95,149.91,6.52]
[1729186293824,3.335,149.95,149.87,41.66]
[1729186294029,3.335,149.95,149.88,6.52]
[1729186294228,41.66,149.98,149.9,3.3358]
[1729186294625,41.66,149.98,149.86,1.4411]
[1729186294835,41.66,149.9,149.77,41.66]
[1729186295127,41.66,149.9,149.83,9.83097237]
[1729186295335,3.3365,149.88,149.83,9.83097237]
[1729186295526,41.66,149.9,149.83,9.83097237]
[1729186296030,3.3364,149.89,149.84,3.3372]
[1729186296330,41.66,149.9,149.83,9.83097237]
[1729186296531,41.66,149.9,149.83,6.52]
[1729186297432,41.66,149.92,149.83,9.8283025]
[1729186298819,1.3921,149.97,149.83,9.8283025]
[1729186298820,41.66,149.94,149.83,9.8283025]
[1729186299334,49.7321,149.97,149.89,3.3362]
[1729186299634,49.7321,149.97,149.88,6.68]
[1729186299829,3.3359,149.91,149.88,6.68]
[1729186300234,49.7321,149.97,149.88,6.68]
[1729186300633,3.3353,149.94,149.89,3.3362]
[1729186300834,49.7321,149.97,149.88,6.68]
[1729186301131,49.7321,149.97,149.88,10.0164]
[1729186301335,49.7321,149.97,149.88,6.68]
[1729186301633,3.3355,149.93,149.88,10.0163]
[1729186302338,3.3351,149.95,149.88,6.68]
[1729186302531,43.0521,149.97,149.88,9.5455]
[1729186303035,43.0521,149.97,149.91,3.3358]
[1729186303237,1.3921,149.97,149.92,3.31431365]
[1729186303432,3.3348,149.96,149.92,3.3354]
[1729186303629,1.3921,149.97,149.91,3.32499099]
[1729186303832,43.0521,149.97,149.88,6.68]
[1729186304037,3.3352,149.94,149.9,3.3359]
[1729186304340,43.0521,149.97,149.9,3.3359]
[1729186305432,3.3353,149.94,149.9,3.3359]
[1729186306637,43.0521,149.97,149.89,6.68]
[1729186307241,3.3347,149.96,149.92,3.3354]
[1729186307549,41.66,150.02,149.93,6.68]
[1729186308233,48.34,150.04,149.93,10.05513304]
[1729186308432,3.3339,150.0,149.96,3.3345]
[1729186309237,3.3337,150.01,149.93,4.78133304]
[1729186309430,43.0559,150.06,149.94,51.1321]
[1729186309638,1.3959,150.06,150.0,3.3336]
[1729186309838,3.333,150.04,149.99,6.68]
[1729186310641,41.66,150.09,149.99,6.68]
[1729186311032,41.66,150.06,149.99,6.68]
[1729186311240,3.3329,150.04,149.99,10.0138]
[1729186311536,3.3329,150.04,149.99,6.68]
[1729186311937,3.3329,150.04,150.0,3.3336]
[1729186312731,41.66,150.06,150.01,3.2996598]
[1729186312935,41.66,150.09,150.01,3.2996598]
[1729186313539,3.333,150.04,150.01,3.2996598]
[1729186313736,41.66,150.09,150.01,3.2996598]
[1729186313932,3.3328,150.05,150.01,3.3334]
[1729186314139,41.66,150.09,150.02,3.2666532]
[1729186314635,41.66,150.09,150.02,3.3333]
[1729186314838,41.66,150.09,150.03,3.37367066]
[1729186315036,41.66,150.09,149.99,6.68]
[1729186315238,41.66,150.09,150.0,3.3337]
[1729186315439,41.66,150.09,150.01,3.25765906]
[1729186315847,3.3331,150.03,150.01,3.25765906]
[1729186316644,3.3328,150.05,149.99,6.68]